bitfinex-derivatives/quotes_ETHF0:USTF0_20251203
["timestamp","ask_amount","ask_price","bid_price","bid_amount"]
[1764789963752,0.7813,3120.6,3120.5,1.9237]
[1764789963952,1.56740145,3121.0,3120.9,1.4664]
[1764789964348,0.78940145,3121.0,3120.9,1.4664]
[1764789965147,0.00810145,3121.0,3120.9,1.4664]
[1764789965751,0.78940145,3121.0,3120.9,1.4664]
[1764789965952,1.56740145,3121.0,3120.9,1.4664]
[1764789966152,0.7813,3120.6,3120.5,1.9237]
[1764789966348,1.5593,3120.6,3120.5,1.9237]
[1764789966544,1.5593,3120.6,3120.5,1.4664]
[1764789966749,1.5593,3120.6,3120.5,0.7237]
[1764789967955,1.5593,3120.4,3120.3,0.72850877]
[1764789968559,1.5593,3120.4,3120.3,0.00480877]
[1764789970269,42.3593,3120.4,3120.3,0.00480877]
[1764789975462,42.5195,3120.4,3120.3,0.00480877]
[1764789975664,42.5195,3120.4,3119.5,1.9213]
[1764789975665,1.5593,3119.6,3119.5,1.9213]
[1764789976865,1.5593,3119.6,3119.5,1.9058]
[1764789979065,1.5593,3120.2,3120.1,1.4664]
[1764789979268,1.5593,3120.2,3119.5,0.4394]
[1764789981073,0.778,3119.4,3119.2,1.15371251]
[1764789981379,0.4455,3119.5,3119.2,1.15371251]
[1764789981380,1.5593,3119.3,3119.2,0.00480877]
[1764789981764,42.3593,3119.3,3119.2,0.00480877]
[1764789983569,42.3593,3119.3,3119.2,0.72850877]
[1764789984471,43.61577228,3119.3,3119.2,0.72850877]
[1764789984970,43.61577228,3119.3,3119.2,1.47120877]
[1764789985177,43.61577228,3119.3,3119.2,0.72850877]
[1764789986373,43.61577228,3119.3,3119.2,1.47120877]
[1764789987178,43.61577228,3119.3,3119.2,0.72850877]
[1764789989779,43.61577228,3119.3,3119.2,0.00480877]
[1764789990277,43.61577228,3119.3,3119.2,0.72850877]
[1764789991277,43.61577228,3119.3,3119.2,0.00480877]
[1764789997873,2.0188,3120.0,3119.9,0.7654]
[1764789998077,1.5733,3120.0,3119.9,1.5079]
[1764789998481,1.5733,3120.0,3119.5,0.4525]
[1764789998482,40.8,3120.4,3120.3,1.5079]
[1764789998881,40.8,3120.4,3120.3,0.7654]
[1764790000078,40.8,3120.4,3120.3,1.5079]
[1764790000587,1.5733,3120.4,3120.3,1.5079]
[1764790000787,0.7866,3120.4,3120.3,1.5079]
[1764790001288,1.24720145,3121.0,3120.5,1.2179]
[1764790001488,1.5733,3120.6,3120.5,1.9604]
[1764790001786,1.5733,3120.6,3120.1,1.14890374]
[1764790001975,1.5733,3120.6,3120.5,0.7654]
[1764790002179,1.5733,3120.6,3120.5,1.5079]
[1764790002887,41.26050145,3121.0,3120.9,0.7654]
[1764790003083,41.26050145,3121.0,3120.9,1.5079]
[1764790003687,41.26050145,3121.0,3120.9,0.7654]
[1764790004085,2.03380145,3121.0,3120.9,0.7654]
[1764790004278,1.5733,3120.6,3120.5,1.9604]
[1764790004484,0.7866,3120.6,3120.5,1.9604]
[1764790004784,40.8,3120.9,3120.8,0.7654]
[1764790004992,0.7866,3120.6,3120.5,1.2179]
[1764790005189,1.5733,3120.6,3120.5,1.9604]
[1764790007300,0.7866,3120.6,3120.5,1.9604]
[1764790007787,1.5733,3120.6,3120.5,1.9604]
[1764790009199,0.7866,3120.6,3120.5,1.9604]
[1764790010195,1.5733,3120.6,3120.5,1.9604]
[1764790011799,0.7866,3120.6,3120.5,1.9604]
[1764790012000,40.8,3120.9,3120.8,0.7654]
[1764790012400,40.8,3120.9,3120.8,1.5079]
[1764790012600,1.58140145,3121.0,3120.9,1.5079]
[1764790013110,42.38140145,3121.0,3120.9,1.5079]
[1764790014107,42.38140145,3121.0,3120.9,0.7654]
[1764790014602,42.59400145,3121.0,3120.5,0.4525]
[1764790015305,0.7866,3120.6,3120.5,1.9604]
[1764790016807,41.02070145,3121.0,3120.9,0.7654]
[1764790017003,0.00810145,3121.0,3120.9,1.5079]
[1764790017209,0.459,3121.8,3121.0,0.4525]
[1764790017408,0.7866,3121.1,3121.0,1.9604]
[1764790018213,0.78993682,3121.1,3121.0,1.96391811]
[1764790018912,1.57663682,3121.1,3121.0,1.96391811]
[1764790019812,0.78993682,3121.1,3121.0,1.96391811]
[1764790020006,0.00333682,3121.1,3121.0,1.96391811]
[1764790020512,0.78993682,3121.1,3121.0,1.96391811]
[1764790021810,1.57663682,3121.1,3121.0,1.96391811]
[1764790022007,40.8,3121.7,3121.3,1.5079]
[1764790022308,1.71659871,3122.6,3122.5,1.9604]
[1764790022309,0.7866,3122.6,3122.5,1.9604]
[1764790022701,0.4524,3123.0,3122.5,1.9604]
[1764790022702,40.8,3122.9,3122.5,1.9604]
[1764790022905,0.7866,3122.9,3122.8,1.5079]
[1764790023103,0.78914346,3122.9,3122.8,1.5079]
[1764790023439,0.76130877,3123.2,3123.1,1.5595]
[1764790023714,0.00480877,3123.2,3123.1,1.5595]
[1764790023910,0.4524,3124.0,3123.1,1.5595]
[1764790024217,40.8,3123.9,3123.1,1.5595]
[1764790024407,40.80286178,3123.9,3123.1,1.5595]
[1764790025209,1.5324,3123.2,3123.1,1.5595]
[1764790025810,0.7565,3123.2,3123.1,1.5595]
[1764790026214,1.5324,3123.5,3123.4,1.5595]
[1764790026413,1.53720877,3123.8,3123.7,1.5595]
[1764790026715,1.53720877,3123.8,3123.7,0.7839]
[1764790026911,1.5324,3123.6,3123.5,1.5595]
[1764790027311,1.5324,3123.5,3123.4,0.78676164]
[1764790028018,1.5324,3123.5,3123.4,0.00286164]
[1764790028019,1.754,3123.5,3123.4,0.00286164]
[1764790028315,1.5324,3123.6,3123.5,2.0027]
[1764790028516,0.7565,3123.6,3123.5,2.0027]
[1764790028718,41.5565,3123.6,3123.5,2.0027]
[1764790029116,41.5565,3123.6,3123.5,1.5595]
[1764790029413,41.5565,3123.6,3123.5,0.7839]
[1764790029617,1.5324,3123.5,3123.4,0.78676164]
[1764790030009,1.754,3123.5,3123.4,0.00286164]
[1764790033115,1.5324,3122.6,3122.5,0.00480877]
[1764790033715,1.5324,3122.6,3122.5,1.56430877]
[1764790033919,1.5324,3122.6,3122.5,0.78870877]
[1764790034118,1.5324,3122.6,3122.5,0.00871783]
[1764790035720,1.5324,3122.2,3122.1,0.8937]
[1764790036724,1.5324,3122.2,3122.1,1.68043225]
[1764790037115,1.5324,3122.2,3122.1,0.89653225]
[1764790037614,1.5324,3122.2,3122.1,0.00283225]
[1764790039815,1.69251,3122.2,3122.1,0.00283225]
[1764790040020,1.69251,3122.2,3121.0,1.85303253]
[1764790040021,1.5324,3121.9,3121.0,1.85303253]
[1764790040224,1.5324,3121.9,3121.1,1.4106]
[1764790040420,40.8,3121.8,3121.1,1.4106]
[1764790040620,40.8,3121.8,3121.2,0.8999]
[1764790041231,40.80480877,3121.8,3121.7,1.5595]
[1764790042629,40.80480877,3121.8,3121.7,0.7839]
[1764790044230,40.80480877,3121.8,3121.7,1.5595]
[1764790045528,40.80480877,3121.8,3121.7,0.7839]
[1764790047523,40.80480877,3121.8,3121.7,1.5595]
[1764790047830,0.00480877,3121.8,3121.7,1.5595]
[1764790048030,0.4433,3122.5,3121.7,1.5595]
[1764790048329,41.2433,3122.5,3122.4,0.7839]
[1764790049130,1.5324,3122.1,3122.0,2.0027]
[1764790049527,1.5324,3122.1,3122.0,1.5595]
[1764790050828,41.2433,3122.5,3122.0,2.0027]
[1764790051024,0.7565,3122.1,3122.0,2.0027]
[1764790052434,1.5324,3122.1,3122.0,2.0027]
[1764790053237,1.5324,3122.1,3121.5,0.60335]
[1764790053440,1.5324,3122.1,3122.0,0.7901]
[1764790053635,1.5324,3122.1,3122.0,1.5809]
[1764790054134,1.5117,3121.6,3121.5,1.5809]
[1764790054334,1.51539093,3121.6,3121.5,1.5809]
[1764790055428,1.51539093,3121.6,3121.5,0.7901]
[1764790055634,1.5117,3121.4,3121.3,2.2007]
[1764790055838,1.5117,3121.4,3121.3,1.5809]
[1764790056831,0.726,3121.4,3121.3,1.5809]
[1764790057239,0.72969093,3121.6,3121.5,2.0311]
[1764790057738,1.51539093,3121.6,3121.5,2.0311]
[1764790058630,1.51539093,3121.6,3121.5,1.5809]
[1764790058831,1.4785,3121.3,3121.2,2.44346093]
[1764790059333,0.7239,3121.3,3121.2,2.44346093]
[1764790061339,0.72759093,3121.6,3121.5,0.7503]
[1764790061540,1.48219093,3121.6,3121.5,1.5357]
[1764790061741,0.72759093,3121.6,3121.5,2.0005]
[1764790061941,1.48219093,3121.6,3121.5,2.0005]
[1764790065242,0.72759093,3121.6,3121.5,2.0005]
[1764790065443,0.00369093,3121.6,3121.5,2.0005]
[1764790065742,0.72759093,3121.6,3121.5,2.0005]
[1764790066946,1.48219093,3121.6,3121.5,2.0005]
[1764790067144,1.48219093,3121.6,3121.5,0.7503]
[1764790069049,1.48219093,3121.6,3121.5,1.5357]
[1764790070849,1.48219093,3121.6,3121.5,0.7503]
[1764790071048,1.4785,3121.4,3121.3,4.09520374]
[1764790072150,1.48219093,3121.6,3121.5,2.0005]
[1764790076649,0.72759093,3121.6,3121.5,2.0005]
[1764790076858,1.48219093,3121.6,3121.5,2.0005]
[1764790079748,0.72759093,3121.6,3121.5,2.0005]
[1764790081055,41.2433,3122.5,3121.5,4.98188487]
[1764790081360,0.31666413,3122.4,3121.7,1.15076353]
[1764790081655,1.04056413,3122.4,3122.3,1.5357]
[1764790081850,0.72870877,3122.8,3122.7,1.5357]
[1764790082053,0.00714032,3122.8,3122.7,1.5357]
[1764790082358,0.73104032,3122.8,3122.7,1.5357]
[1764790083158,1.48564032,3122.8,3122.7,1.5357]
[1764790084264,1.48564032,3122.8,3122.7,0.7503]
[1764790084960,1.48564032,3122.8,3122.7,1.5114]
[1764790086356,0.73104032,3122.8,3122.7,1.5114]
[1764790086562,1.5113,3122.6,3122.5,1.4929]
[1764790087465,1.5113,3122.6,3122.5,0.7318]
[1764790088057,0.00714032,3122.8,3122.5,0.7318]
[1764790088058,1.51844032,3122.8,3122.7,1.4929]
[1764790088256,1.51844032,3122.8,3122.7,0.7318]
[1764790088463,1.51844032,3122.8,3122.6,0.938]
[1764790088661,1.5113,3122.7,3122.6,1.6698]
[1764790088857,1.5113,3122.7,3122.6,0.938]
[1764790089458,2.76563002,3122.7,3122.6,0.938]
[1764790089866,2.76563002,3122.7,3122.6,1.6698]
[1764790090264,1.5113,3122.7,3122.6,1.6698]
[1764790090567,1.5113,3122.7,3122.6,2.4309]
[1764790092471,0.00714032,3122.8,3122.7,1.4929]
[1764790092657,0.79424032,3122.8,3122.7,1.4929]
[1764790092966,1.51844032,3122.8,3122.7,1.4929]
[1764790093167,0.79424032,3122.8,3122.7,1.4929]
[1764790093766,1.51844032,3122.8,3122.7,1.4929]
[1764790094763,1.51844032,3122.8,3122.6,0.938]
[1764790094972,2.76563002,3122.7,3122.6,0.938]
[1764790096965,1.5113,3122.7,3122.6,0.938]
[1764790097269,1.5113,3122.7,3122.6,1.6698]
[1764790097872,1.5113,3122.7,3122.6,0.938]
[1764790098067,1.67138,3122.7,3122.6,0.938]
[1764790098264,1.67138,3122.7,3122.6,1.4929]
[1764790098566,0.7871,3122.7,3122.6,1.4929]
[1764790098965,0.79424032,3122.8,3122.7,1.4929]
[1764790099173,0.00714032,3122.8,3122.7,1.4929]
[1764790100472,40.8,3123.2,3122.7,2.74723002]
[1764790100675,1.25433002,3123.8,3123.1,1.4929]
[1764790101077,40.8,3123.6,3123.5,1.18]
[1764790101875,40.80413504,3123.6,3123.5,1.94389506]
[1764790103180,0.00413504,3123.6,3123.5,1.94389506]
[1764790103376,0.00480877,3123.9,3123.8,1.4929]
[1764790103377,0.79190877,3123.9,3123.8,1.4929]
[1764790103782,40.80480877,3123.9,3123.8,1.4929]
[1764790104383,40.8088299,3123.9,3123.8,1.4929]
[1764790106281,40.8088299,3123.9,3123.8,0.7318]
[1764790106478,40.8088299,3123.9,3123.5,1.94389506]
[1764790106479,1.5113,3123.6,3123.5,1.94389506]
[1764790107168,1.5113,3123.6,3123.5,0.00279506]
[1764790108268,40.9688599,3123.9,3123.2,0.01320877]
[1764790108269,1.5113,3123.3,3123.2,0.01320877]
[1764790108684,1.5113,3123.3,3123.2,0.00480877]
[1764790109378,1.5113,3123.3,3123.2,0.00795023]
[1764790109683,42.3113,3123.3,3123.2,0.00795023]
[1764790113987,40.8,3123.3,3123.2,1.47135023]
[1764790114284,0.7317,3123.3,3123.2,1.47135023]
[1764790114475,1.5202,3123.3,3123.2,0.00795023]
[1764790114787,42.3202,3123.3,3123.2,0.00795023]
[1764790115882,42.3202,3123.3,3123.2,0.77935023]
[1764790116083,1.5202,3123.3,3123.2,1.51095023]
[1764790116480,1.5290299,3123.9,3123.8,1.503]
[1764790116685,8.242,3124.7,3123.8,1.503]
[1764790116985,8.242,3124.7,3124.5,0.7714]
[1764790116986,42.63601048,3124.6,3124.5,0.7714]
[1764790117183,42.3202,3124.6,3124.0,0.4504]
[1764790117691,42.3202,3124.6,3124.0,1.9534]
[1764790117692,1.5202,3124.1,3124.0,1.9534]
[1764790117988,1.5202,3124.1,3124.0,1.2218]
[1764790118786,1.5202,3124.1,3123.6,1.14853159]
[1764790118984,1.5072,3123.7,3123.6,1.5343]
[1764790119287,0.2304,3124.5,3123.6,1.5343]
[1764790120089,12.9074,3124.5,3123.6,1.5343]
[1764790120789,0.7348,3123.7,3123.6,1.5343]
[1764790124692,12.9074,3124.5,3123.6,1.5343]
[1764790125095,12.676,3124.5,3123.6,1.5343]
[1764790125586,12.9064,3124.5,3123.6,1.5343]
[1764790125994,0.7348,3123.7,3123.6,1.5343]
[1764790126293,1.5072,3123.7,3123.6,1.5343]
[1764790126493,1.5072,3123.7,3123.6,0.753]
[1764790126695,1.5072,3123.7,3123.6,1.5343]
[1764790128593,0.7348,3123.7,3123.6,1.5343]
[1764790128995,1.5072,3123.6,3123.5,1.9847]
[1764790129195,0.7348,3123.6,3123.5,1.9847]
[1764790129397,1.5072,3123.6,3123.5,1.9847]
[1764790130298,1.5072,3123.6,3123.5,1.2034]
[1764790130500,1.5072,3123.6,3123.5,1.9847]
[1764790130894,0.16004,3123.5,3123.3,0.0246]
[1764790131099,2.759923,3123.4,3123.3,0.0246]
[1764790131298,1.5072,3123.4,3123.3,1.5589]
[1764790131504,42.3072,3123.4,3123.3,1.5589]
[1764790132112,42.3072,3123.4,3123.3,0.7776]
[1764790133913,1.5072,3123.4,3123.3,1.5589]
[1764790134215,0.7348,3123.4,3123.3,1.5589]
[1764790135018,40.8,3123.7,3123.6,1.5343]
[1764790135205,0.7348,3124.4,3124.3,0.753]
[1764790135413,1.5072,3124.4,3124.3,1.5343]
[1764790135813,42.3072,3124.4,3124.3,1.5343]
[1764790136616,1.5072,3124.4,3124.3,1.5343]
[1764790138316,0.7348,3124.4,3124.3,1.5343]
[1764790140219,1.5072,3124.4,3124.3,1.5343]
[1764790140718,40.8,3124.5,3124.4,1.5343]
[1764790143722,1.4752,3124.1,3123.7,1.14853159]
[1764790144024,41.0314,3124.5,3123.7,2.65823159]
[1764790144618,0.7548,3123.8,3123.7,2.65823159]
[1764790144923,1.4752,3123.8,3123.7,0.7897]
[1764790145216,1.4752,3123.8,3123.7,1.93823159]
[1764790145527,1.4752,3123.8,3123.7,0.7897]
[1764790146623,0.7548,3123.8,3123.7,1.5097]
[1764790146827,53.7054,3124.5,3123.7,2.65823159]
[1764790147026,0.3163114,3124.4,3123.7,2.65823159]
[1764790147720,0.7548,3123.8,3123.7,2.65823159]
[1764790148137,1.4752,3123.8,3123.7,2.65823159]
[1764790148541,0.7548,3123.8,3123.7,2.65823159]
[1764790150433,1.4752,3123.8,3123.7,2.65823159]
[1764790151432,0.7548,3123.8,3123.7,2.65823159]
[1764790155032,0.16,3124.4,3123.7,2.65823159]
[1764790155233,0.31660407,3124.3,3123.7,2.65823159]
[1764790155536,1.4752,3123.8,3123.7,2.65823159]
[1764790156422,1.4752,3123.8,3123.7,1.5097]
[1764790157129,0.7548,3123.8,3123.7,1.5097]
[1764790158435,0.16,3124.4,3123.7,1.5097]
[1764790158638,0.31671943,3124.3,3123.7,1.5097]
[1764790159235,0.7548,3123.8,3123.7,2.65823159]
[1764790159434,1.4752,3123.8,3123.7,2.65823159]
[1764790159735,0.7548,3123.8,3123.7,1.5097]
[1764790160030,1.4752,3123.8,3123.7,0.7897]
[1764790160234,1.4752,3123.6,3123.5,3.01343159]
[1764790160534,1.4752,3123.6,3123.5,1.244]
[1764790160733,1.4752,3123.6,3123.5,1.964]
[1764790161432,1.4752,3123.6,3123.5,1.244]
[1764790161829,42.2752,3123.6,3123.5,1.244]
[1764790162235,42.2752,3123.6,3123.5,1.964]
[1764790164539,40.8,3123.6,3123.5,1.964]
[1764790165738,1.5128008,3124.5,3123.5,3.11253159]
[1764790165926,0.31679199,3124.4,3123.5,3.11253159]
[1764790166132,40.8,3124.3,3124.2,0.7897]
[1764790166332,41.11679199,3124.3,3124.2,0.7897]
[1764790168941,1.4752,3124.1,3124.0,1.973]
[1764790169146,1.79199199,3124.1,3124.0,1.973]
[1764790170348,1.79199199,3124.1,3124.0,1.253]
[1764790171446,1.79199199,3124.1,3124.0,0.4633]
[1764790173144,1.79199199,3124.1,3124.0,1.253]
[1764790173441,1.07159199,3124.1,3124.0,1.973]
[1764790173639,1.83209199,3124.1,3124.0,1.973]
[1764790173843,40.8,3124.3,3124.2,1.5195]
[1764790174247,0.00802044,3124.6,3124.5,1.9797]
[1764790174752,10.4909,3125.5,3124.5,1.9797]
[1764790174753,1.7080852,3126.0,3125.8,0.15992]
[1764790174943,1.1765,3126.5,3125.9,2.2394008]
[1764790175241,1.1765,3126.5,3126.2,1.14546041]
[1764790175446,1.937,3126.5,3126.1,1.14546041]
[1764790175646,1.94078764,3126.5,3126.1,1.14877693]
[1764790175838,1.94078764,3126.5,3126.4,0.85910568]
[1764790176040,1.4734,3126.3,3126.2,0.85910568]
[1764790176349,1.4734,3126.2,3126.1,0.00331652]
[1764790182652,42.2734,3126.2,3126.1,0.00331652]
[1764790183049,1.5757,3125.3,3125.2,0.85910568]
[1764790183351,0.4645,3125.0,3124.9,0.85910568]
[1764790184048,1.251,3125.0,3124.9,0.86254445]
[1764790184354,0.4645,3125.0,3124.9,0.00343877]
[1764790187250,2.0402,3125.0,3124.9,0.00343877]
[1764790191174,2.0402,3125.0,3124.9,3.877e-05]
[1764790191356,1.5757,3124.7,3124.1,0.85910568]
[1764790191558,2.0402,3124.0,3123.8,0.85910568]
[1764790191754,2.0402,3124.0,3123.6,0.85910568]
[1764790191959,2.0402,3124.0,3123.5,0.85910568]
[1764790192255,2.0402,3124.0,3123.4,1.01915568]
[1764790192462,2.04286658,3124.0,3123.9,0.03407444]
[1764790193763,42.84286658,3124.0,3123.9,0.03407444]
[1764790194262,42.84286658,3124.0,3123.6,0.00480092]
[1764790194263,1.5757,3123.7,3123.6,0.00480092]
[1764790195158,1.5757,3123.7,3123.6,0.0077323]
[1764790197957,1.5757,3123.7,3123.6,3.23e-05]
[1764790205272,1.5608,3122.7,3122.4,0.85910568]
[1764790205467,0.4613,3123.0,3121.7,2.29892831]
[1764790205468,0.7694,3121.9,3121.7,0.85910568]
[1764790205667,0.4613,3122.0,3121.7,0.85910568]
[1764790206269,1.5608,3121.7,3121.6,0.85910568]
[1764790206472,0.00408425,3121.7,3121.6,0.00237341]
[1764790206669,0.00408425,3121.7,3121.6,6.86147909]
[1764790206872,0.4613,3122.5,3121.6,7.72656964]
[1764790207074,0.4613,3122.5,3122.1,0.85501761]
[1764790207863,0.46473778,3122.5,3122.1,0.85501761]
[1764790208277,1.23413778,3122.5,3122.1,0.85501761]
[1764790208477,1.5608,3122.1,3122.0,0.85501761]
[1764790208669,0.7694,3121.9,3121.8,0.85501761]
[1764790208975,0.4613,3122.0,3121.6,0.85739102]
[1764790209276,0.4613,3122.0,3121.6,0.00237341]
[1764790209476,1.2307,3122.0,3121.6,0.00237341]
[1764790213380,1.2307,3122.0,3121.6,0.85739102]
[1764790214177,1.2307,3122.0,3121.6,0.00237341]
[1764790214474,0.7694,3121.7,3121.6,0.85739102]
[1764790214871,1.2307,3122.0,3121.6,0.85739102]
[1764790215471,0.7694,3121.7,3121.6,0.85739102]
[1764790215873,1.5608,3121.7,3121.6,4.64539102]
[1764790216283,0.7694,3121.7,3121.6,3.79037341]
[1764790216485,1.5608,3121.7,3121.6,0.85851575]
[1764790216674,1.5608,3121.7,3121.3,0.00480092]
[1764790216876,1.5608,3121.4,3121.3,0.00480092]
[1764790217778,1.5608,3121.4,3121.3,0.00720826]
[1764790217976,40.8,3121.9,3121.3,0.00720826]
[1764790218182,1.2307,3122.0,3121.7,0.85599954]
[1764790218979,1.2307,3122.0,3121.6,3.24767373]
[1764790218980,1.23413778,3122.5,3121.9,0.85599954]
[1764790219181,0.46473778,3122.5,3122.1,0.85659799]
[1764790219388,1.23413778,3122.5,3122.2,0.85659799]
[1764790219687,0.46473778,3122.5,3122.2,0.85659799]
[1764790219881,1.23413778,3122.5,3122.2,0.85659799]
[1764790220183,0.7694,3122.3,3122.2,0.85659799]
[1764790220382,1.5608,3122.3,3122.1,1.14002349]
[1764790220786,1.5608,3122.3,3122.2,0.85806874]
[1764790220983,2.02553778,3122.5,3122.2,1.14002349]
[1764790221182,2.02553778,3122.5,3122.3,0.85800609]
[1764790221483,2.02553778,3122.5,3122.4,0.85800609]
[1764790222378,1.5608,3122.4,3122.3,1.14002349]
[1764790222582,0.7694,3122.3,3122.2,1.14002349]
[1764790222881,0.7694,3122.3,3122.1,1.72419623]
[1764790224677,0.7694,3122.3,3122.2,1.72419623]
[1764790225571,2.02553778,3122.5,3122.2,1.72419623]
[1764790225776,2.02553778,3122.5,3122.4,1.14644733]
[1764790229076,2.02553778,3122.5,3122.4,1.63881307]
[1764790229284,0.00343778,3122.5,3122.4,1.5307]
[1764790229482,1.2307,3123.0,3122.9,1.5307]
[1764790229791,0.4613,3123.5,3122.9,3.25173311]
[1764790230086,1.5608,3123.4,3123.3,1.63865025]
[1764790230285,1.5608,3123.4,3123.3,2.39115025]
[1764790230589,0.00413713,3123.4,3123.3,1.5307]
[1764790230881,1.56493713,3123.4,3123.3,3.25114611]
[1764790231389,1.5608,3123.3,3123.2,1.72044611]
[1764790231588,1.5608,3123.1,3123.0,0.00480092]
[1764790231984,1.5608,3123.1,3123.0,1.53550092]
[1764790232485,0.7694,3123.1,3123.0,1.53550092]
[1764790232685,0.7694,3123.1,3123.0,3.25594703]
[1764790232886,1.56493713,3123.4,3123.3,0.7782]
[1764790233484,1.56493713,3123.4,3123.3,1.5307]
[1764790234088,1.56493713,3123.4,3123.3,0.86017558]
[1764790234288,1.5076,3123.3,3123.0,0.00480092]
[1764790234490,1.5076,3123.1,3123.0,0.00480092]
[1764790236492,1.5076,3123.1,3123.0,1.52200092]
[1764790236802,1.5076,3123.1,3123.0,0.00480092]
[1764790245400,1.4639,3122.4,3122.3,2.48184611]
[1764790245698,1.4639,3122.4,3122.3,3.23354611]
[1764790246098,0.7325,3122.4,3122.3,3.23354611]
[1764790246600,40.8,3122.9,3122.8,1.5131]
[1764790247498,1.4639,3122.9,3122.8,1.5131]
[1764790248695,0.00413713,3123.4,3122.8,1.5131]
[1764790248895,1.4639,3123.0,3122.9,3.23713066]
[1764790249998,1.4639,3122.9,3122.8,1.72403066]
[1764790250213,1.4639,3122.7,3122.6,1.72403066]
[1764790251097,0.4527,3123.0,3122.3,3.788]
[1764790251098,1.4639,3122.5,3122.4,2.48543066]
[1764790251303,1.4639,3122.5,3122.4,3.23713066]
[1764790251694,1.4639,3122.5,3122.4,2.48543066]
[1764790251695,1.9166,3122.5,3122.4,2.48543066]
[1764790251906,1.4639,3122.3,3122.2,2.48543066]
[1764790252102,1.4639,3122.3,3122.2,1.72403066]
[1764790253199,1.4639,3122.1,3122.0,0.00480092]
[1764790254906,1.4639,3122.1,3122.0,9.2e-07]
[1764790255499,42.2639,3122.1,3122.0,9.2e-07]
[1764790260110,1.4639,3122.1,3122.0,1.51310092]
[1764790260503,0.7325,3122.1,3122.0,1.94740092]
[1764790260711,1.4639,3122.1,3122.0,1.94740092]
[1764790260904,1.4639,3122.1,3122.0,9.2e-07]
[1764790261205,40.8,3122.4,3122.0,9.2e-07]
[1764790261511,46.8,3122.4,3122.0,9.2e-07]
[1764790261813,1.4639,3120.4,3120.3,1.5131]
[1764790262012,0.7325,3120.4,3120.3,1.5131]
[1764790262207,1.4639,3120.4,3120.3,1.5131]
[1764790262514,1.4639,3119.9,3119.8,0.7614]
[1764790262714,1.4675129,3119.9,3119.8,1.51590257]
[1764790262905,1.4675129,3119.9,3119.8,0.00280257]
[1764790264207,1.5231,3119.6,3119.0,0.4343]
[1764790264412,1.5231,3119.6,3119.5,0.7821]
[1764790264614,42.3231,3119.6,3119.0,0.4343]
[1764790265313,42.3231,3119.6,3119.0,0.44254664]
[1764790265711,0.0036129,3119.9,3119.8,1.5659]
[1764790266713,0.7675129,3119.9,3119.8,1.5659]
[1764790268014,0.0036129,3119.9,3119.8,1.5659]
[1764790275037,1.5267129,3119.9,3119.8,1.5659]
[1764790275519,1.5231,3119.6,3119.0,0.44254664]
[1764790276513,0.7639,3119.1,3119.0,2.00844664]
[1764790276714,0.0036129,3119.9,3119.0,2.00844664]
[1764790277315,0.7639,3119.1,3119.0,2.00844664]
[1764790277512,1.5231,3119.1,3119.0,2.00844664]
[1764790277717,1.5231,3119.1,3119.0,0.00824664]
[1764790278324,0.7675129,3119.9,3119.8,1.5659]
[1764790278623,1.5267129,3119.9,3119.5,0.4647]
[1764790278821,0.7639,3119.6,3119.5,2.0306]
[1764790279020,1.5267129,3119.9,3119.8,0.7821]
[1764790279226,0.0036129,3119.9,3119.8,1.5659]
[1764790279519,0.0036129,3119.9,3119.5,0.4647]
[1764790279520,1.5231,3119.6,3119.5,1.2468]
[1764790280130,1.5231,3119.6,3119.5,2.0306]
[1764790280431,1.5231,3119.6,3119.5,1.2468]
[1764790280622,1.5231,3119.6,3119.0,0.47294664]
[1764790281325,1.5231,3119.1,3119.0,1.25504664]
[1764790281626,1.5231,3119.1,3119.0,0.00824664]
[1764790281832,1.5231,3119.1,3119.0,0.79034664]
[1764790282825,1.5231,3119.1,3119.0,0.00824664]
[1764790283426,1.5231,3118.6,3118.5,0.7822]
[1764790284028,42.3231,3118.6,3118.5,0.7822]
[1764790284535,42.3231,3118.6,3118.5,0.78490541]
[1764790284728,42.3231,3118.6,3117.5,0.4647]
[1764790285031,0.45,3118.5,3117.5,0.4647]
[1764790285338,0.45,3118.5,3117.6,1.8609]
[1764790286038,0.45,3118.5,3117.6,1.8643071]
[1764790286833,40.8,3118.6,3117.6,1.8643071]
[1764790287224,40.8,3118.6,3117.7,0.7818]
[1764790287632,0.45,3118.5,3117.7,0.7818]
[1764790290831,0.7639,3117.8,3117.7,2.3477]
[1764790291331,0.7639,3117.8,3117.7,1.5659]
[1764790291728,0.45,3118.5,3117.6,1.8643071]
[1764790291729,1.5231,3117.7,3117.6,2.6464071]
[1764790291930,1.52673262,3117.7,3117.6,3.4302071]
[1764790292129,0.76753262,3117.7,3117.6,3.4302071]
[1764790292731,0.00363262,3117.7,3117.6,3.4302071]
[1764790295540,1.58060877,3118.9,3118.8,0.7399]
[1764790295832,1.5758,3118.6,3118.5,1.9182]
[1764790296036,1.5758,3118.6,3118.0,0.4341]
[1764790296534,1.57947726,3118.6,3118.0,0.4341]
[1764790297530,1.5758,3118.1,3118.0,1.174]
[1764790299131,0.7239,3117.7,3117.6,2.72260216]
[1764790299435,41.243,3118.5,3117.6,4.22860216]
[1764790301242,40.8,3118.5,3118.4,0.747]
[1764790301736,0.00367726,3118.6,3118.5,1.9693]
[1764790304537,0.00367726,3118.6,3118.5,2.82759506]
[1764790307340,0.00367726,3118.6,3118.5,1.9693]
[1764790309440,0.00367726,3118.6,3118.5,3.11429516]
[1764790309641,0.00367726,3118.6,3118.5,1.9693]
[1764790310537,0.00367726,3118.6,3118.5,3.69321401]
[1764790311433,0.00367726,3118.6,3118.5,3.69388054]
[1764790311843,0.00367726,3118.6,3118.5,1.9693]
[1764790313036,0.00480877,3118.9,3118.8,1.506]
[1764790313255,1.39621115,3120.2,3118.8,1.506]
[1764790313443,0.32706269,3119.9,3119.3,0.86207397]
[1764790313744,41.12706269,3119.9,3119.3,0.86207397]
[1764790313939,0.32706269,3119.8,3119.3,0.86207397]
[1764790314244,0.33047751,3119.8,3119.3,0.86207397]